fUST/lending_fUST_20240401
["ID","MTS","AMOUNT","RATE_DAILY","PERIOD"]
[321192254,1711965049139,-500.0,0.00055342,120]
[321192255,1711965049148,-409.36,0.00055342,120]
[321192256,1711965049158,-500.0,0.00055342,120]
[321192257,1711965049167,-500.0,0.00055342,120]
[321192258,1711965049179,-2219.29,0.00055342,120]
[321192259,1711965049194,-500.0,0.00055342,120]
[321192260,1711965049204,-500.0,0.00055342,120]
[321192261,1711965049213,-500.0,0.00055342,120]
[321192262,1711965049224,-1628.68,0.00055342,120]
[321192263,1711965049233,-500.0,0.00055342,120]
[321192264,1711965049243,-1206.79320679,0.00055368,30]
[321192265,1711965049252,-500.0,0.00055616,120]
[321192266,1711965049261,-332.02328386,0.00055616,120]
[321192267,1711965049271,-500.0,0.00055616,120]
[321192268,1711965049281,-500.0,0.00055616,120]
[321192269,1711965049290,-500.0,0.00055616,120]
[321192270,1711965049299,-500.0,0.00055616,120]
[321192271,1711965049308,-500.0,0.00055616,2]
[321192272,1711965049317,-500.0,0.00055616,120]
[321192273,1711965049326,-500.0,0.00055616,120]
[321192274,1711965049335,-509.70763352,0.00055616,120]
[321192275,1711965049344,-503.93846976,0.00055616,120]
[321192276,1711965049354,-592.84,0.00055616,120]
[321192277,1711965049363,-500.0,0.00055616,120]
[321192278,1711965049372,-500.00000001,0.00055616,120]
[321192279,1711965049381,-500.0,0.00055616,120]
[321192280,1711965049391,-500.0,0.00055616,120]
[321192281,1711965049399,-500.0,0.00055616,120]
[321192282,1711965049408,-447.27382676,0.00055616,120]
[321192283,1711965049417,-510.66,0.00055616,120]
[321192284,1711965049426,-500.0,0.00055616,120]
[321192285,1711965049437,-503.98154739,0.00055616,120]
[321192286,1711965049446,-507.12678978,0.00055616,120]
[321192287,1711965049458,-500.0,0.00055616,120]
[321192288,1711965049467,-500.0,0.00055616,120]
[321192289,1711965049477,-513.24663033,0.00055616,120]
[321192290,1711965049486,-342.33,0.00055616,120]
[321192291,1711965049496,-500.0,0.00055616,120]
[321192292,1711965049506,-500.0,0.00055616,120]
[321192293,1711965049515,-500.0,0.00055616,120]
[321192294,1711965049524,-757.36,0.00055616,120]
[321192295,1711965049533,-527.04226545,0.00055616,120]
[321192296,1711965049542,-500.0,0.00055616,120]
[321192297,1711965049551,-500.0,0.00055616,120]
[321192298,1711965049561,-500.0,0.00055616,120]
[321192299,1711965049570,-500.0,0.00055616,120]
[321192300,1711965049578,-500.0,0.00055616,120]
[321192301,1711965049588,-1300.25,0.00055616,120]
[321192302,1711965049598,-500.0,0.00055616,120]
[321192303,1711965049607,-500.0,0.00055616,120]
[321192304,1711965049617,-500.0,0.00055616,120]
[321192305,1711965049626,-543.31,0.00055616,120]
[321192306,1711965049635,-562.97,0.00055616,120]
[321192307,1711965049645,-2899.42,0.00055616,90]
[321192308,1711965049654,-500.0,0.00055616,120]
[321192309,1711965049664,-578.2,0.00055616,21]
[321192310,1711965049673,-500.0,0.00055616,120]
[321192311,1711965049683,-3000.0,0.00055616,120]
[321192312,1711965049694,-500.0,0.00055616,120]
[321192313,1711965049703,-516.62,0.00055616,120]
[321192314,1711965049712,-500.0,0.00055616,120]
[321192315,1711965049721,-151.0,0.00055616,120]
[321192316,1711965049730,-984.9,0.00055616,120]
[321192317,1711965049739,-165.49760333,0.00055616,120]
[321192318,1711965049748,-500.0,0.00055616,120]
[321192319,1711965049757,-500.0,0.00055616,120]
[321192320,1711965049766,-500.0,0.00055616,120]
[321192321,1711965049775,-500.0,0.00055616,120]
[321192322,1711965049784,-500.0,0.00055616,120]
[321192323,1711965049793,-500.0,0.00055616,120]
[321192324,1711965049802,-500.0,0.00055616,120]
[321192325,1711965049812,-500.0,0.00055616,120]
[321192326,1711965049821,-500.0,0.00055616,120]
[321192327,1711965049831,-500.0,0.00055616,120]
[321192328,1711965049840,-2219.29,0.00055616,120]
[321192329,1711965049849,-500.0,0.00055616,120]
[321192330,1711965049858,-500.0,0.00055616,120]
[321192331,1711965049868,-500.0,0.00055616,120]
[321192332,1711965049877,-1628.68,0.00055616,120]
[321192333,1711965049887,-500.0,0.00055616,120]
[321192334,1711965049896,-500.0,0.0005589,120]
[321192335,1711965049905,-500.0,0.0005589,120]
[321192336,1711965049914,-500.0,0.0005589,120]
[321192337,1711965049923,-500.0,0.0005589,120]
[321192338,1711965049932,-500.0,0.0005589,2]
[321192339,1711965049944,-593.35285033,0.0005589,120]
[321192340,1711965049953,-326.96015896,0.0005589,120]
[321192341,1711965049962,-592.84,0.0005589,120]
[321192342,1711965049972,-338.20249029,0.0005589,120]
[321192343,1711965049981,-500.0,0.0005589,120]
[321192344,1711965049990,-500.0,0.0005589,120]
[321192345,1711965050000,-500.0,0.0005589,120]
[321192346,1711965050009,-510.66,0.0005589,120]
[321192347,1711965050018,-500.0,0.0005589,120]
[321192348,1711965050029,-500.0,0.0005589,120]
[321192349,1711965050039,-500.0,0.0005589,120]
[321192350,1711965050048,-500.0,0.0005589,120]
[321192351,1711965050058,-500.0,0.0005589,120]
[321192352,1711965050067,-500.0,0.0005589,120]
[321192353,1711965050077,-757.36,0.0005589,120]
[321192354,1711965050086,-500.0,0.0005589,120]
[321192355,1711965050096,-500.0,0.0005589,120]
[321192356,1711965050106,-500.0,0.0005589,120]
[321192357,1711965050116,-500.0,0.0005589,120]
[321192358,1711965050126,-500.0,0.0005589,120]
[321192359,1711965050135,-1300.25,0.0005589,120]
[321192360,1711965050145,-500.0,0.0005589,120]
[321192361,1711965050155,-500.0,0.0005589,120]
[321192362,1711965050164,-500.0,0.0005589,120]
[321192363,1711965050177,-562.97,0.0005589,120]
[321192364,1711965050189,-2899.42,0.0005589,90]
[321192365,1711965050198,-578.2,0.0005589,21]
[321192366,1711965050208,-500.0,0.0005589,120]
[321192367,1711965050219,-3000.0,0.0005589,120]
[321192368,1711965050229,-430.54937276,0.0005589,120]
[321192369,1711965050307,-516.62,0.0005589,120]
[321192370,1711965050317,-500.0,0.0005589,120]
[321192371,1711965050327,-152.63616133,0.0005589,120]
[321192372,1711965050337,-984.9,0.0005589,120]
[321192373,1711965050347,-500.0,0.0005589,120]
[321192374,1711965050356,-500.0,0.0005589,120]
[321192375,1711965050365,-500.0,0.0005589,120]
[321192376,1711965050374,-500.0,0.0005589,120]
[321192377,1711965050384,-500.0,0.0005589,120]
[321192378,1711965050393,-500.0,0.0005589,120]
[321192379,1711965050403,-500.0,0.0005589,120]
[321192380,1711965050413,-500.0,0.0005589,120]
[321192381,1711965050423,-500.0,0.0005589,120]
[321192382,1711965050433,-500.0,0.0005589,120]
[321192383,1711965050444,-2219.29,0.0005589,120]
[321192384,1711965050453,-500.0,0.0005589,120]
[321192385,1711965050463,-500.0,0.0005589,120]
[321192386,1711965050472,-511.75710333,0.0005589,120]
[321192387,1711965050482,-1628.68,0.0005589,120]
[321192388,1711965050491,-500.0,0.0005589,120]
[321192389,1711965050501,-2528.11,0.00056,60]
[321192390,1711965050510,-155.173174,0.00056,120]
[321192391,1711965050519,-383.092427,0.00056,120]
[321192392,1711965050529,-383.092427,0.00056,120]
[321192393,1711965050538,-151.0,0.00056,120]
[321192394,1711965050547,-186.505829,0.00056,120]
[321192395,1711965050557,-186.505829,0.00056,120]
[321192396,1711965050567,-500.0,0.00056164,120]
[321192397,1711965050577,-500.0,0.00056164,120]
[321192398,1711965050586,-500.0,0.00056164,120]
[321192399,1711965050596,-500.0,0.00056164,120]
[321192400,1711965050606,-500.0,0.00056164,2]
[321192401,1711965050616,-592.84,0.00056164,120]
[321192402,1711965050626,-500.0,0.00056164,120]
[321192403,1711965050636,-510.66,0.00056164,120]
[321192404,1711965050645,-500.0,0.00056164,120]
[321192405,1711965050655,-151.0,0.00056164,120]
[321192406,1711965050665,-500.0,0.00056164,120]
[321192407,1711965050675,-500.0,0.00056164,120]
[321192408,1711965050685,-500.0,0.00056164,120]
[321192409,1711965050695,-151.0,0.00056164,120]
[321192410,1711965050705,-500.0,0.00056164,120]
[321192411,1711965050715,-433.191621,0.00056164,120]
[321192412,1711965050724,-433.191621,0.00056164,120]
[321192413,1711965050734,-151.0,0.00056164,120]
[321192414,1711965050743,-274.60983,0.00056164,120]
[321192415,1711965050753,-151.0,0.00056164,120]
[321192416,1711965050763,-500.0,0.00056164,120]
[321192417,1711965050773,-757.36,0.00056164,120]
[321192418,1711965050782,-278.82819441,0.00056164,120]
[321192419,1711965050792,-500.0,0.00056164,120]
[321192420,1711965050802,-500.0,0.00056164,120]
[321192421,1711965050812,-500.0,0.00056164,120]
[321192422,1711965050822,-500.0,0.00056164,120]
[321192423,1711965050832,-151.0,0.00056164,120]
[321192424,1711965050841,-1300.25,0.00056164,120]
[321192425,1711965050850,-500.0,0.00056164,120]
[321192426,1711965050860,-500.0,0.00056164,120]
[321192427,1711965050869,-500.0,0.00056164,120]
[321192428,1711965050878,-1750.886818,0.00056164,10]
[321192429,1711965050887,-1750.886818,0.00056164,10]
[321192430,1711965050896,-562.97,0.00056164,120]
[321192431,1711965050906,-184.131425,0.00056164,120]
[321192432,1711965050915,-184.131425,0.00056164,120]
[321192433,1711965050924,-2899.42,0.00056164,90]
[321192434,1711965050934,-578.2,0.00056164,21]
[321192435,1711965050944,-338.10182847,0.00056164,120]
[321192436,1711965050953,-3000.0,0.00056164,120]
[321192437,1711965050962,-516.62,0.00056164,120]
[321192438,1711965050971,-500.0,0.00056164,120]
[321192439,1711965050981,-984.9,0.00056164,120]
[321192440,1711965050991,-500.0,0.00056164,120]
[321192441,1711965051001,-500.0,0.00056164,120]
[321192442,1711965051010,-500.0,0.00056164,120]
[321192443,1711965051019,-396.98722347,0.00056164,120]
[321192444,1711965051029,-500.0,0.00056164,120]
[321192445,1711965051039,-500.0,0.00056164,120]
[321192446,1711965051048,-500.0,0.00056164,120]
[321192447,1711965051057,-500.0,0.00056164,120]
[321192448,1711965051067,-500.0,0.00056164,120]
[321192449,1711965051076,-500.0,0.00056164,120]
[321192450,1711965051086,-2219.29,0.00056164,120]
[321192451,1711965051096,-500.0,0.00056164,120]
[321192452,1711965051105,-500.0,0.00056164,120]
[321192453,1711965051115,-1628.68,0.00056164,120]
[321192454,1711965051125,-500.0,0.00056164,120]
[321192455,1711965051134,-500.0,0.00056438,120]
[321192456,1711965051143,-500.0,0.00056438,120]
[321192457,1711965051153,-500.0,0.00056438,120]
[321192458,1711965051163,-500.0,0.00056438,120]
[321192459,1711965051174,-500.0,0.00056438,2]
[321192460,1711965051187,-592.84,0.00056438,120]
[321192461,1711965051200,-500.0,0.00056438,120]
[321192462,1711965051209,-510.66,0.00056438,120]
[321192463,1711965051219,-500.0,0.00056438,120]
[321192464,1711965051229,-500.0,0.00056438,120]
[321192465,1711965051239,-500.0,0.00056438,120]
[321192466,1711965051248,-392.55973087,0.00056438,120]
[321192467,1711965051258,-500.0,0.00056438,120]
[321192468,1711965051274,-500.0,0.00056438,120]
[321192469,1711965051284,-757.36,0.00056438,120]
[321192470,1711965051294,-500.0,0.00056438,120]
[321192471,1711965051303,-500.0,0.00056438,120]
[321192472,1711965051313,-500.0,0.00056438,120]
[321192473,1711965051323,-500.0,0.00056438,120]
[321192474,1711965051332,-1300.25,0.00056438,120]
[321192475,1711965051342,-500.0,0.00056438,120]
[321192476,1711965051351,-500.0,0.00056438,120]
[321192477,1711965051360,-500.0,0.00056438,120]
[321192478,1711965051370,-562.97,0.00056438,120]
[321192479,1711965051380,-2899.42,0.00056438,90]
[321192480,1711965051389,-578.2,0.00056438,21]
[321192481,1711965051398,-1241.89424141,0.00056438,120]
[321192482,1711965051407,-516.62,0.00056438,120]
[321192483,1711965051417,-500.0,0.00056438,120]
[321192484,1711965051427,-984.9,0.00056438,120]
[321192485,1711965051437,-500.0,0.00056438,120]
[321192486,1711965051446,-500.0,0.00056438,120]
[321192487,1711965051455,-500.0,0.00056438,120]
[321192488,1711965051464,-357.43787453,0.00056438,120]
[321192489,1711965051474,-500.0,0.00056438,120]
[321192490,1711965051483,-500.0,0.00056438,120]
[321192491,1711965051493,-500.0,0.00056438,120]
[321192492,1711965051503,-500.0,0.00056438,120]
[321192493,1711965051512,-500.0,0.00056438,120]
[321192494,1711965051522,-2219.29,0.00056438,120]
[321192495,1711965051532,-364.07,0.00056438,120]
[321192496,1711965051542,-500.0,0.00056438,120]
[321192497,1711965051553,-1628.68,0.00056438,120]
[321192498,1711965051563,-500.0,0.00056438,120]
[321192499,1711965051573,-345.40473274,0.00056712,120]
[321192500,1711965051673,-154.59526726,0.00056712,120]
[321192501,1711965051682,-500.0,0.00056712,120]
[321192502,1711965051692,-500.0,0.00056712,120]
[321192503,1711965051702,-500.0,0.00056712,120]
[321192504,1711965051711,-34.92158955,0.00056712,2]
[321192505,1711965051733,-0.0020123,0.00056712,2]
[321192506,1711965051781,-423.01639815,0.00056712,2]
[321192507,1711965051791,-34.69826709,0.00056712,120]
[321192508,1711965051802,-558.14173291,0.00056712,120]
[321192509,1711965051880,-413.36782195,0.00056712,120]
[321192510,1711965051890,-510.66,0.00056712,120]
[321192511,1711965051899,-500.0,0.00056712,120]
[321192512,1711965051908,-500.0,0.00056712,120]
[321192513,1711965051917,-500.0,0.00056712,120]
[321192514,1711965051927,-500.0,0.00056712,120]
[321192515,1711965051936,-115.35003773,0.00056712,120]
[321192516,1711965051948,-218.33117263,0.00056712,120]
[321192517,1711965051958,-757.36,0.00056712,120]
[321192518,1711965051969,-500.0,0.00056712,120]
[321192519,1711965051978,-500.0,0.00056712,120]
[321192520,1711965051988,-500.0,0.00056712,120]
[321192521,1711965051997,-500.0,0.00056712,120]
[321192522,1711965052006,-1300.25,0.00056712,120]
[321192523,1711965052016,-247.17043365,0.00056712,120]
[321192524,1711965052026,-500.0,0.00056712,120]
[321192525,1711965052035,-500.0,0.00056712,120]
[321192526,1711965052045,-562.97,0.00056712,120]
[321192527,1711965052054,-2899.42,0.00056712,90]
[321192528,1711965052063,-578.2,0.00056712,21]
[321192529,1711965052072,-516.62,0.00056712,120]
[321192530,1711965052082,-500.0,0.00056712,120]
[321192531,1711965052091,-984.9,0.00056712,120]
[321192532,1711965052101,-500.0,0.00056712,120]
[321192533,1711965052110,-500.0,0.00056712,120]
[321192534,1711965052119,-500.0,0.00056712,120]
[321192535,1711965052129,-500.0,0.00056712,120]
[321192536,1711965052138,-500.0,0.00056712,120]
[321192537,1711965052147,-500.0,0.00056712,120]
[321192538,1711965052157,-500.0,0.00056712,120]
[321192539,1711965052166,-500.0,0.00056712,120]
[321192540,1711965052177,-2219.29,0.00056712,120]
[321192541,1711965052188,-500.0,0.00056712,120]
[321192542,1711965052197,-1628.68,0.00056712,120]
[321192543,1711965052207,-500.0,0.00056712,120]
[321192544,1711965052216,-35469.24217029,0.00056789,120]
[321192545,1711965052226,-506.58862269,0.00056986,120]
[321192546,1711965052235,-500.0,0.00056986,120]
[321192547,1711965052244,-219.87479358,0.00056986,120]
[321192548,1711965052254,-500.0,0.00056986,120]
[321192549,1711965052264,-383.092427,0.00056986,120]
[321192550,1711965052275,-592.84,0.00056986,120]
[321192551,1711965052284,-168.387704,0.00056986,120]
[321192552,1711965052294,-186.505829,0.00056986,120]
[321192553,1711965052303,-186.505829,0.00056986,120]
[321192554,1711965052313,-510.66,0.00056986,120]
[321192555,1711965052322,-500.0,0.00056986,120]
[321192556,1711965052332,-154.436325,0.00056986,120]
[321192557,1711965052341,-500.0,0.00056986,120]
[321192558,1711965052351,-500.0,0.00056986,120]
[321192559,1711965052360,-182.671571,0.00056986,120]
[321192560,1711965052369,-500.0,0.00056986,120]
[321192561,1711965052378,-433.191621,0.00056986,120]
[321192562,1711965052387,-433.191621,0.00056986,120]
[321192563,1711965052397,-757.36,0.00056986,120]
[321192564,1711965052406,-500.0,0.00056986,120]
[321192565,1711965052416,-500.0,0.00056986,120]
[321192566,1711965052425,-507.0118784,0.00056986,120]
[321192567,1711965052434,-500.0,0.00056986,120]
[321192568,1711965052445,-167.616332,0.00056986,120]
[321192569,1711965052455,-1300.25,0.00056986,120]
[321192570,1711965052464,-500.0,0.00056986,120]
[321192571,1711965052474,-500.0,0.00056986,120]
[321192572,1711965052483,-1750.886818,0.00056986,10]
[321192573,1711965052492,-1750.886818,0.00056986,10]
[321192574,1711965052501,-562.97,0.00056986,120]
[321192575,1711965052511,-184.131425,0.00056986,120]
[321192576,1711965052521,-184.131425,0.00056986,120]
[321192577,1711965052530,-2899.42,0.00056986,90]
[321192578,1711965052538,-578.2,0.00056986,21]
[321192579,1711965052549,-516.62,0.00056986,120]
[321192580,1711965052559,-500.0,0.00056986,120]
[321192581,1711965052568,-984.9,0.00056986,120]
[321192582,1711965052577,-500.0,0.00056986,120]
[321192583,1711965052587,-593.08445853,0.00056986,120]
[321192584,1711965052596,-500.0,0.00056986,120]
[321192585,1711965052605,-500.0,0.00056986,120]
[321192586,1711965052615,-500.0,0.00056986,120]
[321192587,1711965052625,-500.0,0.00056986,120]
[321192588,1711965052634,-500.0,0.00056986,120]
[321192589,1711965052643,-500.0,0.00056986,120]
[321192590,1711965052653,-2219.29,0.00056986,120]
[321192591,1711965052662,-500.0,0.00056986,120]
[321192592,1711965052671,-1628.68,0.00056986,120]
[321192593,1711965052681,-545.85070882,0.00056986,120]
[321192594,1711965052690,-500.0,0.0005726,120]
[321192595,1711965052699,-500.0,0.0005726,120]
[321192596,1711965052708,-592.84,0.0005726,120]
[321192597,1711965052718,-510.66,0.0005726,120]
[321192598,1711965052727,-500.0,0.0005726,120]
[321192599,1711965052736,-500.0,0.0005726,120]
[321192600,1711965052745,-500.0,0.0005726,120]
[321192601,1711965052754,-500.0,0.0005726,120]
[321192602,1711965052764,-151.0,0.0005726,120]
[321192603,1711965052773,-151.0,0.0005726,120]
[321192604,1711965052782,-757.36,0.0005726,120]
[321192605,1711965052792,-500.0,0.0005726,120]
[321192606,1711965052801,-500.0,0.0005726,120]
[321192607,1711965052811,-500.0,0.0005726,120]
[321192608,1711965052820,-1300.25,0.0005726,120]
[321192609,1711965052830,-500.0,0.0005726,120]
[321192610,1711965052839,-500.0,0.0005726,120]
[321192611,1711965052848,-562.97,0.0005726,120]
[321192612,1711965052857,-2899.42,0.0005726,90]
[321192613,1711965052867,-578.2,0.0005726,21]
[321192614,1711965052876,-516.62,0.0005726,120]
[321192615,1711965052885,-500.0,0.0005726,120]
[321192616,1711965052894,-984.9,0.0005726,120]
[321192617,1711965052904,-500.0,0.0005726,120]
[321192618,1711965052913,-500.0,0.0005726,120]
[321192619,1711965052923,-500.0,0.0005726,120]
[321192620,1711965052933,-500.0,0.0005726,120]
[321192621,1711965052945,-500.0,0.0005726,120]
[321192622,1711965052955,-500.0,0.0005726,120]
[321192623,1711965052965,-500.0,0.0005726,120]
[321192624,1711965052974,-2219.29,0.0005726,120]
[321192625,1711965052985,-500.0,0.0005726,120]
[321192626,1711965052995,-1628.68,0.0005726,120]
[321192627,1711965053005,-500.0,0.00057534,120]
[321192628,1711965053015,-500.0,0.00057534,120]
[321192629,1711965053026,-592.84,0.00057534,120]
[321192630,1711965053035,-510.66,0.00057534,120]
[321192631,1711965053045,-500.0,0.00057534,120]
[321192632,1711965053055,-500.0,0.00057534,120]
[321192633,1711965053065,-500.0,0.00057534,120]
[321192634,1711965053074,-500.0,0.00057534,120]
[321192635,1711965053085,-757.36,0.00057534,120]
[321192636,1711965053095,-505.90841612,0.00057534,120]
[321192637,1711965053104,-500.0,0.00057534,120]
[321192638,1711965053114,-500.0,0.00057534,120]
[321192639,1711965053124,-1300.25,0.00057534,120]
[321192640,1711965053135,-500.0,0.00057534,120]
[321192641,1711965053145,-500.0,0.00057534,120]
[321192642,1711965053155,-562.97,0.00057534,120]
[321192643,1711965053165,-2899.42,0.00057534,90]
[321192644,1711965053174,-578.2,0.00057534,21]
[321192645,1711965053184,-516.62,0.00057534,120]
[321192646,1711965053199,-500.0,0.00057534,120]
[321192647,1711965053209,-984.9,0.00057534,120]
[321192648,1711965053218,-500.0,0.00057534,120]
[321192649,1711965053229,-500.0,0.00057534,120]
[321192650,1711965053239,-508.62386292,0.00057534,120]
[321192651,1711965053249,-500.0,0.00057534,120]
[321192652,1711965053259,-328.79467681,0.00057534,120]
[321192653,1711965053270,-500.0,0.00057534,120]
[321192654,1711965053281,-408.49346517,0.00057534,120]
[321192655,1711965053291,-2219.29,0.00057534,120]
[321192656,1711965053301,-500.0,0.00057534,120]
[321192657,1711965053311,-1628.68,0.00057534,120]
[321192658,1711965053320,-500.0,0.00057808,120]
[321192659,1711965053330,-172.01297613,0.00057808,120]
[321192660,1711965053340,-592.84,0.00057808,120]
[321192661,1711965053349,-510.66,0.00057808,120]
[321192662,1711965053418,-500.0,0.00057808,120]
[321192663,1711965053428,-500.0,0.00057808,120]
[321192664,1711965053440,-500.0,0.00057808,120]
[321192665,1711965053449,-500.0,0.00057808,120]
[321192666,1711965053459,-757.36,0.00057808,120]
[321192667,1711965053468,-500.0,0.00057808,120]
[321192668,1711965053477,-391.99657876,0.00057808,120]
[321192669,1711965053487,-1300.25,0.00057808,120]
[321192670,1711965053497,-500.0,0.00057808,120]
[321192671,1711965053506,-500.0,0.00057808,120]
[321192672,1711965053516,-562.97,0.00057808,120]
[321192673,1711965053526,-2899.42,0.00057808,90]
[321192674,1711965053535,-578.2,0.00057808,21]
[321192675,1711965053545,-516.62,0.00057808,120]
[321192676,1711965053554,-500.0,0.00057808,120]
[321192677,1711965053564,-984.9,0.00057808,120]
[321192678,1711965053573,-400.37301074,0.00057808,120]
[321192679,1711965053583,-500.0,0.00057808,120]
[321192680,1711965053593,-500.0,0.00057808,120]
[321192681,1711965053603,-500.0,0.00057808,120]
[321192682,1711965053613,-2219.29,0.00057808,120]
[321192683,1711965053623,-500.0,0.00057808,120]
[321192684,1711965053633,-1628.68,0.00057808,120]
[321192685,1711965053642,-3403.51631333,0.00058,120]
[321192686,1711965053652,-500.0,0.00058082,120]
[321192687,1711965053661,-592.84,0.00058082,120]
[321192688,1711965053671,-510.66,0.00058082,120]
[321192689,1711965053680,-500.0,0.00058082,120]
[321192690,1711965053690,-247.00864878,0.00058082,120]
[321192691,1711965053700,-352.55,0.00058082,120]
[321192692,1711965053709,-500.0,0.00058082,120]
[321192693,1711965053719,-757.36,0.00058082,120]
[321192694,1711965053729,-500.0,0.00058082,120]
[321192695,1711965053738,-1300.25,0.00058082,120]
[321192696,1711965053748,-568.39598128,0.00058082,120]
[321192697,1711965053758,-500.0,0.00058082,120]
[321192698,1711965053767,-562.97,0.00058082,120]
[321192699,1711965053777,-2899.42,0.00058082,90]
[321192700,1711965053786,-578.2,0.00058082,21]
[321192701,1711965053796,-516.62,0.00058082,120]
[321192702,1711965053805,-176.43,0.00058082,120]
[321192703,1711965053815,-984.9,0.00058082,120]
[321192704,1711965053825,-500.0,0.00058082,120]
[321192705,1711965053835,-500.0,0.00058082,120]
[321192706,1711965053844,-500.0,0.00058082,120]
[321192707,1711965053854,-2219.29,0.00058082,120]
[321192708,1711965053863,-500.0,0.00058082,120]
[321192709,1711965053874,-1628.68,0.00058082,120]
[321192710,1711965053883,-500.0,0.00058356,120]
[321192711,1711965053892,-592.84,0.00058356,120]
[321192712,1711965053902,-510.66,0.00058356,120]
[321192713,1711965053912,-500.0,0.00058356,120]
[321192714,1711965053921,-500.0,0.00058356,120]
[321192715,1711965053931,-757.36,0.00058356,120]
[321192716,1711965053941,-500.0,0.00058356,120]
[321192717,1711965053951,-1300.25,0.00058356,120]
[321192718,1711965053961,-500.0,0.00058356,120]
[321192719,1711965053971,-562.97,0.00058356,120]
[321192720,1711965053980,-2899.42,0.00058356,90]
[321192721,1711965053989,-578.2,0.00058356,21]
[321192722,1711965053999,-516.62,0.00058356,120]
[321192723,1711965054009,-984.9,0.00058356,120]
[321192724,1711965054019,-500.0,0.00058356,120]
[321192725,1711965054028,-500.0,0.00058356,120]
[321192726,1711965054038,-500.0,0.00058356,120]
[321192727,1711965054047,-2219.29,0.00058356,120]
[321192728,1711965054057,-432.08842785,0.00058356,120]
[321192729,1711965054068,-1628.68,0.00058356,120]
[321192730,1711965054078,-500.0,0.0005863,120]
[321192731,1711965054087,-592.84,0.0005863,120]
[321192732,1711965054097,-510.66,0.0005863,120]
[321192733,1711965054107,-440.77,0.0005863,120]
[321192734,1711965054117,-500.0,0.0005863,120]
[321192735,1711965054127,-757.36,0.0005863,120]
[321192736,1711965054137,-500.0,0.0005863,120]
[321192737,1711965054147,-1300.25,0.0005863,120]
[321192738,1711965054156,-152.33930722,0.0005863,120]
[321192739,1711965054166,-562.97,0.0005863,120]
[321192740,1711965054177,-2899.42,0.0005863,90]
[321192741,1711965054189,-578.2,0.0005863,21]
[321192742,1711965054199,-516.62,0.0005863,120]
[321192743,1711965054208,-984.9,0.0005863,120]
[321192744,1711965054218,-500.0,0.0005863,120]
[321192745,1711965054229,-500.0,0.0005863,120]
[321192746,1711965054238,-500.0,0.0005863,120]
[321192747,1711965054247,-2219.29,0.0005863,120]
[321192748,1711965054256,-1628.68,0.0005863,120]
[321192749,1711965054266,-500.0,0.00058904,120]
[321192750,1711965054275,-383.092427,0.00058904,120]
[321192751,1711965054285,-592.84,0.00058904,120]
[321192752,1711965054294,-510.66,0.00058904,120]
[321192753,1711965054303,-500.0,0.00058904,120]